[Event "Titled Tuesday Blitz November 30 2021"]
[White "Perez Gormaz, Matias"]
[Black "Pour Agha Bala, Amirreza"]
[WhiteFideId "3406342"]
[BlackFideId "12572896"]
[WhiteElo "2352"]
[BlackElo "2313"]
[Result "0-1"]
[Round "07"]
[TimeControl "180+1"]
[Date "2021.11.30"]
[WhiteClock "0:00:06"]
[BlackClock "0:01:06"]

1. e4 {[%clk 0:03:00]}  c5 {[%clk 0:02:59]} 2. Nf3 {[%clk 0:03:00]}  Nc6 {[%clk 0:02:59]} 3. Bb5 {[%clk 0:03:00]}  e6 {[%clk 0:02:58]} 4. O-O {[%clk 0:02:59]}  Nge7 {[%clk 0:02:54]} 5. d4 {[%clk 0:02:59]}  cxd4 {[%clk 0:02:54]} 6. Nxd4 {[%clk 0:03:00]}  a6 {[%clk 0:02:52]} 7. Nxc6 {[%clk 0:03:00]}  Nxc6 {[%clk 0:02:50]} 8. Bxc6 {[%clk 0:02:57]}  bxc6 {[%clk 0:02:51]} 9. c4 {[%clk 0:02:54]}  Be7 {[%clk 0:02:48]} 10. Nc3 {[%clk 0:02:48]}  O-O {[%clk 0:02:47]} 11. Be3 {[%clk 0:02:46]}  Qc7 {[%clk 0:02:41]} 12. c5 {[%clk 0:02:44]}  f5 {[%clk 0:02:36]} 13. f4 {[%clk 0:02:34]}  d5 {[%clk 0:02:18]} 14. cxd6 {[%clk 0:02:32]}  Bxd6 {[%clk 0:02:13]} 15. Qd2 {[%clk 0:02:19]}  Bb7 {[%clk 0:02:06]} 16. Rad1 {[%clk 0:01:57]}  Rad8 {[%clk 0:02:04]} 17. Qd3 {[%clk 0:01:42]}  c5 {[%clk 0:02:01]} 18. Qc4 {[%clk 0:01:41]}  Rde8 {[%clk 0:01:50]} 19. e5 {[%clk 0:01:13]}  Qc6 {[%clk 0:01:43]} 20. Rf2 {[%clk 0:01:11]}  Be7 {[%clk 0:01:38]} 21. Na4 {[%clk 0:01:01]}  Rc8 {[%clk 0:01:34]} 22. b3 {[%clk 0:00:47]}  Rfd8 {[%clk 0:01:32]} 23. Rxd8+ {[%clk 0:00:36]}  Rxd8 {[%clk 0:01:31]} 24. h3 {[%clk 0:00:33]}  Rd5 {[%clk 0:01:27]} 25. Rc2 {[%clk 0:00:30]}  Rd1+ {[%clk 0:01:27]} 26. Kh2 {[%clk 0:00:29]}  Re1 {[%clk 0:01:27]} 27. Bxc5 {[%clk 0:00:26]}  Bh4 {[%clk 0:01:24]} 28. Bb4 {[%clk 0:00:07]}  Qxc4 {[%clk 0:01:18]} 29. bxc4 {[%clk 0:00:07]}  Rb1 {[%clk 0:01:12]} 30. a3 {[%clk 0:00:06]}  Be4 {[%clk 0:01:10]} 31. Rd2 {[%clk 0:00:07]}  Rb3 {[%clk 0:01:07]} 32. Nc5 {[%clk 0:00:06]}  Bg3+ {[%clk 0:01:06]} 33. Kg1 {[%clk 0:00:06]}  Rb1+ {[%clk 0:01:06]} 0-1


[Site "https://www.chess.com"]

[Event "Titled Tuesday Blitz November 30 2021"]
[White "Poormosavi, Seyed Kian"]
[Black "Lazavik, Denis"]
[WhiteFideId "12585807"]
[BlackFideId "13515110"]
[WhiteElo "2134"]
[BlackElo "2436"]
[Result "1-0"]
[Round "07"]
[TimeControl "180+1"]
[Date "2021.11.30"]
[WhiteClock "0:00:04"]
[BlackClock "0:00:04"]

1. e4 {[%clk 0:02:43]}  e5 {[%clk 0:02:58]} 2. Nf3 {[%clk 0:02:39]}  Nc6 {[%clk 0:02:58]} 3. c3 {[%clk 0:02:40]}  d5 {[%clk 0:02:56]} 4. Bb5 {[%clk 0:02:38]}  dxe4 {[%clk 0:02:50]} 5. Nxe5 {[%clk 0:02:39]}  Qg5 {[%clk 0:02:50]} 6. Qa4 {[%clk 0:02:34]}  Qxe5 {[%clk 0:01:32]} 7. Bxc6+ {[%clk 0:02:34]}  bxc6 {[%clk 0:01:31]} 8. Qxc6+ {[%clk 0:02:29]}  Kd8 {[%clk 0:01:31]} 9. Qxa8 {[%clk 0:02:29]}  Bc5 {[%clk 0:01:30]} 10. O-O {[%clk 0:02:17]}  Nf6 {[%clk 0:01:27]} 11. d4 {[%clk 0:02:14]}  exd3 {[%clk 0:01:22]} 12. Nd2 {[%clk 0:02:14]}  Re8 {[%clk 0:00:42]} 13. Nf3 {[%clk 0:02:12]}  Qe4 {[%clk 0:00:43]} 14. Qb8 {[%clk 0:02:07]}  Bb6 {[%clk 0:00:35]} 15. Bg5 {[%clk 0:02:06]}  h6 {[%clk 0:00:24]} 16. Bxf6+ {[%clk 0:02:06]}  gxf6 {[%clk 0:00:24]} 17. Rae1 {[%clk 0:02:05]}  Qc6 {[%clk 0:00:23]} 18. Rxe8+ {[%clk 0:02:05]}  Qxe8 {[%clk 0:00:24]} 19. Qa8 {[%clk 0:02:03]}  Qe6 {[%clk 0:00:18]} 20. Rd1 {[%clk 0:02:00]}  Bxf2+ {[%clk 0:00:11]} 21. Kh1 {[%clk 0:01:46]}  Qd6 {[%clk 0:00:10]} 22. Qe4 {[%clk 0:01:38]}  Ba6 {[%clk 0:00:09]} 23. c4 {[%clk 0:01:38]}  Qe6 {[%clk 0:00:05]} 24. Rxd3+ {[%clk 0:01:36]}  Ke7 {[%clk 0:00:03]} 25. Qf4 {[%clk 0:01:09]}  Qxc4 {[%clk 0:00:03]} 26. Qxc4 {[%clk 0:00:46]}  Bxc4 {[%clk 0:00:04]} 27. Ra3 {[%clk 0:00:46]}  Bb6 {[%clk 0:00:03]} 28. Ne1 {[%clk 0:00:36]}  f5 {[%clk 0:00:03]} 29. Rh3 {[%clk 0:00:25]}  Bxa2 {[%clk 0:00:02]} 30. Rxh6 {[%clk 0:00:25]}  Be6 {[%clk 0:00:02]} 31. Rh8 {[%clk 0:00:23]}  Bd4 {[%clk 0:00:02]} 32. Rb8 {[%clk 0:00:24]}  a5 {[%clk 0:00:02]} 33. h4 {[%clk 0:00:24]}  Bd5 {[%clk 0:00:01]} 34. h5 {[%clk 0:00:23]}  Kf6 {[%clk 0:00:02]} 35. Nf3 {[%clk 0:00:22]}  Bb6 {[%clk 0:00:01]} 36. Rg8 {[%clk 0:00:21]}  Bxf3 {[%clk 0:00:01]} 37. gxf3 {[%clk 0:00:22]}  Be3 {[%clk 0:00:02]} 38. Kg2 {[%clk 0:00:20]}  a4 {[%clk 0:00:03]} 39. Kf1 {[%clk 0:00:20]}  Bc1 {[%clk 0:00:03]} 40. Ke2 {[%clk 0:00:19]}  Ke5 {[%clk 0:00:03]} 41. Kd3 {[%clk 0:00:17]}  Kf4 {[%clk 0:00:02]} 42. Kc2 {[%clk 0:00:15]}  Be3 {[%clk 0:00:02]} 43. h6 {[%clk 0:00:16]}  Kxf3 {[%clk 0:00:03]} 44. h7 {[%clk 0:00:16]}  Bd4 {[%clk 0:00:03]} 45. h8=Q {[%clk 0:00:14]}  Bxh8 {[%clk 0:00:04]} 46. Rxh8 {[%clk 0:00:15]}  f4 {[%clk 0:00:05]} 47. Rf8 {[%clk 0:00:15]}  Ke2 {[%clk 0:00:03]} 48. Rxf7 {[%clk 0:00:15]}  f3 {[%clk 0:00:04]} 49. Re7+ {[%clk 0:00:15]}  Kf1 {[%clk 0:00:04]} 50. Rxc7 {[%clk 0:00:13]}  f2 {[%clk 0:00:05]} 51. Kd2 {[%clk 0:00:10]}  Kg2 {[%clk 0:00:04]} 52. Rg7+ {[%clk 0:00:10]}  Kf1 {[%clk 0:00:04]} 53. Rf7 {[%clk 0:00:04]}  Kg2 {[%clk 0:00:04]} 54. Ke2 {[%clk 0:00:04]} 1-0


[Site "https://www.chess.com"]

[Event "Titled Tuesday Blitz November 30 2021"]
[White "Samunenkov, Ihor"]
[Black "Makarian, Rudik"]
[WhiteFideId "14187086"]
[BlackFideId "44105681"]
[WhiteElo "2348"]
[BlackElo "2486"]
[Result "1-0"]
[Round "07"]
[TimeControl "180+1"]
[Date "2021.11.30"]
[WhiteClock "0:00:21"]
[BlackClock "0:00:12"]

1. d4 {[%clk 0:03:00]}  Nf6 {[%clk 0:02:59]} 2. g3 {[%clk 0:03:01]}  c5 {[%clk 0:02:59]} 3. d5 {[%clk 0:03:01]}  g6 {[%clk 0:02:54]} 4. Bg2 {[%clk 0:03:02]}  Bg7 {[%clk 0:02:54]} 5. e4 {[%clk 0:03:01]}  d6 {[%clk 0:02:54]} 6. a4 {[%clk 0:03:01]}  O-O {[%clk 0:02:25]} 7. Ne2 {[%clk 0:03:01]}  e6 {[%clk 0:02:23]} 8. dxe6 {[%clk 0:02:55]}  fxe6 {[%clk 0:02:13]} 9. Na3 {[%clk 0:02:55]}  Nc6 {[%clk 0:02:09]} 10. O-O {[%clk 0:02:54]}  Qe7 {[%clk 0:01:58]} 11. Nc3 {[%clk 0:02:53]}  Nd4 {[%clk 0:01:53]} 12. Ncb5 {[%clk 0:02:30]}  Nxb5 {[%clk 0:01:24]} 13. Nxb5 {[%clk 0:02:30]}  Rd8 {[%clk 0:01:23]} 14. Bf4 {[%clk 0:02:13]}  Ne8 {[%clk 0:01:09]} 15. h4 {[%clk 0:02:03]}  Bxb2 {[%clk 0:01:06]} 16. Rb1 {[%clk 0:01:58]}  Bg7 {[%clk 0:01:04]} 17. Qd3 {[%clk 0:01:47]}  b6 {[%clk 0:00:52]} 18. Bg5 {[%clk 0:01:32]}  Bf6 {[%clk 0:00:45]} 19. Bxf6 {[%clk 0:01:25]}  Nxf6 {[%clk 0:00:46]} 20. e5 {[%clk 0:01:25]}  dxe5 {[%clk 0:00:46]} 21. Qxd8+ {[%clk 0:01:20]}  Qxd8 {[%clk 0:00:47]} 22. Bxa8 {[%clk 0:01:20]}  e4 {[%clk 0:00:33]} 23. Rbd1 {[%clk 0:01:16]}  Bd7 {[%clk 0:00:33]} 24. Bc6 {[%clk 0:01:09]}  Qe7 {[%clk 0:00:33]} 25. Bxd7 {[%clk 0:01:03]}  Nxd7 {[%clk 0:00:34]} 26. Rfe1 {[%clk 0:01:03]}  Nf6 {[%clk 0:00:27]} 27. Nd6 {[%clk 0:01:03]}  h6 {[%clk 0:00:21]} 28. Nxe4 {[%clk 0:01:01]}  Nd5 {[%clk 0:00:21]} 29. c4 {[%clk 0:00:46]}  Nf6 {[%clk 0:00:20]} 30. Nxf6+ {[%clk 0:00:36]}  Qxf6 {[%clk 0:00:21]} 31. Rd6 {[%clk 0:00:36]}  Qc3 {[%clk 0:00:19]} 32. Rexe6 {[%clk 0:00:29]}  Kf7 {[%clk 0:00:16]} 33. Rxg6 {[%clk 0:00:24]}  Qxc4 {[%clk 0:00:16]} 34. Rxh6 {[%clk 0:00:23]}  Qc1+ {[%clk 0:00:12]} 35. Kg2 {[%clk 0:00:22]}  c4 {[%clk 0:00:12]} 36. Rh7+ {[%clk 0:00:21]}  Kg8 {[%clk 0:00:12]} 37. Rc7 {[%clk 0:00:21]} 1-0


[Site "https://www.chess.com"]

[Event "Titled Tuesday Blitz November 30 2021"]
[White "Seo, Jung Min"]
[Black "Bluebaum, Matthias"]
[WhiteFideId "1734687"]
[BlackFideId "24651516"]
[WhiteElo "2472"]
[BlackElo "2681"]
[Result "0-1"]
[Round "07"]
[TimeControl "180+1"]
[Date "2021.11.30"]
[WhiteClock "0:00:50"]
[BlackClock "0:00:22"]

1. d4 {[%clk 0:03:00]}  d5 {[%clk 0:02:59]} 2. c4 {[%clk 0:03:01]}  e6 {[%clk 0:02:59]} 3. Nc3 {[%clk 0:03:01]}  Nf6 {[%clk 0:03:00]} 4. Nf3 {[%clk 0:03:01]}  Bb4 {[%clk 0:02:59]} 5. Bg5 {[%clk 0:03:00]}  h6 {[%clk 0:02:59]} 6. Bxf6 {[%clk 0:03:00]}  Qxf6 {[%clk 0:03:00]} 7. Qa4+ {[%clk 0:02:59]}  Nc6 {[%clk 0:03:01]} 8. e3 {[%clk 0:02:58]}  O-O {[%clk 0:03:01]} 9. Rc1 {[%clk 0:02:57]}  Qg6 {[%clk 0:03:00]} 10. Qc2 {[%clk 0:02:53]}  Qxc2 {[%clk 0:03:00]} 11. Rxc2 {[%clk 0:02:54]}  Rd8 {[%clk 0:03:01]} 12. a3 {[%clk 0:02:53]}  Bf8 {[%clk 0:03:01]} 13. Be2 {[%clk 0:02:52]}  Ne7 {[%clk 0:02:52]} 14. O-O {[%clk 0:02:50]}  c6 {[%clk 0:02:48]} 15. Rfc1 {[%clk 0:02:50]}  Bd7 {[%clk 0:02:48]} 16. h3 {[%clk 0:02:45]}  Nf5 {[%clk 0:02:47]} 17. Ne5 {[%clk 0:02:37]}  Be8 {[%clk 0:02:47]} 18. Bd3 {[%clk 0:02:29]}  f6 {[%clk 0:02:39]} 19. Nf3 {[%clk 0:02:26]}  Nd6 {[%clk 0:02:39]} 20. Nd2 {[%clk 0:02:15]}  g5 {[%clk 0:02:32]} 21. b4 {[%clk 0:02:13]}  Kg7 {[%clk 0:02:26]} 22. Rb1 {[%clk 0:02:03]}  dxc4 {[%clk 0:02:10]} 23. Nxc4 {[%clk 0:02:03]}  Nxc4 {[%clk 0:02:10]} 24. Bxc4 {[%clk 0:02:03]}  Bg6 {[%clk 0:02:11]} 25. e4 {[%clk 0:01:59]}  Rxd4 {[%clk 0:02:02]} 26. Bxe6 {[%clk 0:01:59]}  Rxe4 {[%clk 0:02:03]} 27. Nxe4 {[%clk 0:01:54]}  Bxe4 {[%clk 0:02:04]} 28. Rcc1 {[%clk 0:01:47]}  Bxb1 {[%clk 0:02:04]} 29. Rxb1 {[%clk 0:01:47]}  Rd8 {[%clk 0:02:04]} 30. Bg4 {[%clk 0:01:47]}  Rd3 {[%clk 0:01:23]} 31. Rd1 {[%clk 0:01:46]}  Rxd1+ {[%clk 0:01:03]} 32. Bxd1 {[%clk 0:01:45]}  f5 {[%clk 0:01:00]} 33. Kf1 {[%clk 0:01:39]}  Kf6 {[%clk 0:00:39]} 34. Ke2 {[%clk 0:01:39]}  Ke5 {[%clk 0:00:37]} 35. Kd3 {[%clk 0:01:38]}  b5 {[%clk 0:00:33]} 36. g4 {[%clk 0:01:27]}  c5 {[%clk 0:00:32]} 37. Kc3 {[%clk 0:01:17]}  fxg4 {[%clk 0:00:28]} 38. hxg4 {[%clk 0:01:17]}  Ke4 {[%clk 0:00:27]} 39. Be2 {[%clk 0:01:07]}  Bg7+ {[%clk 0:00:25]} 40. Kc2 {[%clk 0:01:03]}  c4 {[%clk 0:00:25]} 41. a4 {[%clk 0:01:00]}  a6 {[%clk 0:00:25]} 42. a5 {[%clk 0:00:53]}  Kd4 {[%clk 0:00:20]} 43. Bf3 {[%clk 0:00:51]}  Bf8 {[%clk 0:00:20]} 44. Bb7 {[%clk 0:00:50]}  Bxb4 {[%clk 0:00:21]} 45. Bxa6 {[%clk 0:00:50]}  Kc5 {[%clk 0:00:22]} 0-1


[Site "https://www.chess.com"]

[Event "Titled Tuesday Blitz November 30 2021"]
[White "Stribuk, Artiom"]
[Black "Kobalia, Mikhail"]
[WhiteFideId "13515659"]
[BlackFideId "4119150"]
[WhiteElo "2224"]
[BlackElo "2543"]
[Result "0-1"]
[Round "07"]
[TimeControl "180+1"]
[Date "2021.11.30"]
[WhiteClock "0:00:02"]
[BlackClock "0:01:15"]

1. d4 {[%clk 0:02:28]}  Nf6 {[%clk 0:02:58]} 2. c4 {[%clk 0:02:28]}  g6 {[%clk 0:02:59]} 3. Nf3 {[%clk 0:02:29]}  Bg7 {[%clk 0:02:59]} 4. g3 {[%clk 0:02:28]}  O-O {[%clk 0:02:58]} 5. Bg2 {[%clk 0:02:29]}  d6 {[%clk 0:02:59]} 6. O-O {[%clk 0:02:29]}  Nc6 {[%clk 0:02:59]} 7. Nc3 {[%clk 0:02:19]}  a6 {[%clk 0:02:58]} 8. Qd3 {[%clk 0:02:15]}  e5 {[%clk 0:02:48]} 9. dxe5 {[%clk 0:02:16]}  dxe5 {[%clk 0:02:47]} 10. Qxd8 {[%clk 0:02:17]}  Rxd8 {[%clk 0:02:46]} 11. Bg5 {[%clk 0:02:18]}  Be6 {[%clk 0:02:37]} 12. Nd2 {[%clk 0:02:16]}  h6 {[%clk 0:02:30]} 13. Bxf6 {[%clk 0:02:12]}  Rxd2 {[%clk 0:02:28]} 14. Bxg7 {[%clk 0:02:12]}  Kxg7 {[%clk 0:02:29]} 15. Bxc6 {[%clk 0:02:12]}  bxc6 {[%clk 0:02:29]} 16. b3 {[%clk 0:02:13]}  Rad8 {[%clk 0:02:27]} 17. Rfd1 {[%clk 0:02:12]}  Bf5 {[%clk 0:02:20]} 18. Kf1 {[%clk 0:01:56]}  R8d6 {[%clk 0:02:20]} 19. Ke1 {[%clk 0:01:11]}  Rc2 {[%clk 0:02:15]} 20. Rdc1 {[%clk 0:00:56]}  Rdd2 {[%clk 0:02:13]} 21. Rxc2 {[%clk 0:00:54]}  Rxc2 {[%clk 0:02:14]} 22. Na4 {[%clk 0:00:50]}  e4 {[%clk 0:02:09]} 23. Kd1 {[%clk 0:00:35]}  e3 {[%clk 0:02:09]} 24. fxe3 {[%clk 0:00:36]}  Kf6 {[%clk 0:02:09]} 25. g4 {[%clk 0:00:32]}  Bd3 {[%clk 0:01:40]} 26. exd3 {[%clk 0:00:33]}  Rxh2 {[%clk 0:01:39]} 27. Rc1 {[%clk 0:00:33]}  Kg5 {[%clk 0:01:37]} 28. Rc2 {[%clk 0:00:14]}  Rh1+ {[%clk 0:01:36]} 29. Kd2 {[%clk 0:00:14]}  Kxg4 {[%clk 0:01:37]} 30. Kc3 {[%clk 0:00:14]}  h5 {[%clk 0:01:36]} 31. Nc5 {[%clk 0:00:15]}  h4 {[%clk 0:01:36]} 32. Ne4 {[%clk 0:00:12]}  Rf1 {[%clk 0:01:28]} 33. Kd4 {[%clk 0:00:07]}  f5 {[%clk 0:01:27]} 34. Nc5 {[%clk 0:00:03]}  h3 {[%clk 0:01:23]} 35. Nxa6 {[%clk 0:00:03]}  Kg3 {[%clk 0:01:17]} 36. Nxc7 {[%clk 0:00:02]}  h2 {[%clk 0:01:17]} 37. Rxh2 {[%clk 0:00:03]}  Kxh2 {[%clk 0:01:17]} 38. a4 {[%clk 0:00:03]}  g5 {[%clk 0:01:17]} 39. Ne6 {[%clk 0:00:02]}  g4 {[%clk 0:01:17]} 40. a5 {[%clk 0:00:03]}  g3 {[%clk 0:01:17]} 41. a6 {[%clk 0:00:03]}  g2 {[%clk 0:01:17]} 42. a7 {[%clk 0:00:02]}  Ra1 {[%clk 0:01:17]} 43. Ng5 {[%clk 0:00:02]}  Kg3 {[%clk 0:01:15]} 0-1


[Site "https://www.chess.com"]

[Event "Titled Tuesday Blitz November 30 2021"]
[White "Arabidze, Meri"]
[Black "Ibarra Jerez, Jose Carlos"]
[WhiteFideId "13604040"]
[BlackFideId "2226332"]
[WhiteElo "2432"]
[BlackElo "2626"]
[Result "0-1"]
[Round "08"]
[TimeControl "180+1"]
[Date "2021.11.30"]
[WhiteClock "0:00:08"]
[BlackClock "0:00:01"]

1. Nf3 {[%clk 0:03:00]}  d6 {[%clk 0:02:59]} 2. d4 {[%clk 0:03:01]}  g6 {[%clk 0:02:59]} 3. g3 {[%clk 0:03:00]}  Bg7 {[%clk 0:02:59]} 4. Bg2 {[%clk 0:03:01]}  Nd7 {[%clk 0:03:00]} 5. O-O {[%clk 0:03:01]}  e5 {[%clk 0:03:00]} 6. Nc3 {[%clk 0:02:56]}  Ngf6 {[%clk 0:02:58]} 7. e4 {[%clk 0:02:54]}  O-O {[%clk 0:02:57]} 8. Re1 {[%clk 0:02:54]}  b6 {[%clk 0:02:57]} 9. a4 {[%clk 0:02:49]}  a5 {[%clk 0:02:57]} 10. Nb5 {[%clk 0:02:45]}  Bb7 {[%clk 0:02:51]} 11. d5 {[%clk 0:02:43]}  Nc5 {[%clk 0:02:46]} 12. Nd2 {[%clk 0:02:38]}  Nfd7 {[%clk 0:02:33]} 13. Nc4 {[%clk 0:02:18]}  Ba6 {[%clk 0:02:29]} 14. Nca3 {[%clk 0:02:02]}  Nxa4 {[%clk 0:02:25]} 15. c3 {[%clk 0:01:59]}  Nac5 {[%clk 0:02:25]} 16. b4 {[%clk 0:01:44]}  axb4 {[%clk 0:02:25]} 17. cxb4 {[%clk 0:01:43]}  Bxb5 {[%clk 0:02:22]} 18. bxc5 {[%clk 0:01:21]}  Nxc5 {[%clk 0:02:18]} 19. Bg5 {[%clk 0:01:12]}  Qd7 {[%clk 0:02:01]} 20. Nxb5 {[%clk 0:01:06]}  Qxb5 {[%clk 0:01:58]} 21. Bf1 {[%clk 0:01:05]}  Qd7 {[%clk 0:01:49]} 22. Rb1 {[%clk 0:01:00]}  Ra5 {[%clk 0:01:41]} 23. Bd2 {[%clk 0:00:59]}  Ra3 {[%clk 0:01:26]} 24. Bb5 {[%clk 0:00:57]}  Qh3 {[%clk 0:01:22]} 25. Bb4 {[%clk 0:00:50]}  Ra2 {[%clk 0:01:17]} 26. Bc4 {[%clk 0:00:40]}  Rxf2 {[%clk 0:01:01]} 27. Kxf2 {[%clk 0:00:41]}  Qxh2+ {[%clk 0:01:01]} 28. Kf3 {[%clk 0:00:27]}  f5 {[%clk 0:01:00]} 29. Bxc5 {[%clk 0:00:20]}  f4 {[%clk 0:00:26]} 30. g4 {[%clk 0:00:12]}  Qg3+ {[%clk 0:00:25]} 31. Ke2 {[%clk 0:00:12]}  bxc5 {[%clk 0:00:22]} 32. Kd2 {[%clk 0:00:12]}  f3 {[%clk 0:00:21]} 33. Kc2 {[%clk 0:00:11]}  Qxg4 {[%clk 0:00:16]} 34. Rb3 {[%clk 0:00:10]}  Qf4 {[%clk 0:00:10]} 35. Qd3 {[%clk 0:00:10]}  g5 {[%clk 0:00:09]} 36. Kb1 {[%clk 0:00:08]}  g4 {[%clk 0:00:10]} 37. Rf1 {[%clk 0:00:08]}  h5 {[%clk 0:00:08]} 38. Bb5 {[%clk 0:00:08]}  h4 {[%clk 0:00:08]} 39. Bd7 {[%clk 0:00:08]}  h3 {[%clk 0:00:05]} 40. Bxg4 {[%clk 0:00:08]}  Qxg4 {[%clk 0:00:05]} 41. Rxf3 {[%clk 0:00:09]}  Qg1+ {[%clk 0:00:04]} 42. Ka2 {[%clk 0:00:08]}  Qg2+ {[%clk 0:00:03]} 43. Ka3 {[%clk 0:00:08]}  Ra8+ {[%clk 0:00:01]} 0-1


[Site "https://www.chess.com"]

[Event "Titled Tuesday Blitz November 30 2021"]
[White "Bacrot, Etienne"]
[Black "Deac, Bogdan-Daniel"]
[WhiteFideId "605506"]
[BlackFideId "1226380"]
[WhiteElo "2673"]
[BlackElo "2605"]
[Result "0-1"]
[Round "08"]
[TimeControl "180+1"]
[Date "2021.11.30"]
[WhiteClock "0:00:01"]
[BlackClock "0:00:04"]

1. e4 {[%clk 0:03:00]}  c5 {[%clk 0:03:00]} 2. Nf3 {[%clk 0:03:01]}  d6 {[%clk 0:03:00]} 3. Bb5+ {[%clk 0:03:00]}  Nd7 {[%clk 0:03:00]} 4. c3 {[%clk 0:03:00]}  Nf6 {[%clk 0:02:59]} 5. Qe2 {[%clk 0:03:00]}  a6 {[%clk 0:02:59]} 6. Ba4 {[%clk 0:03:00]}  b5 {[%clk 0:02:54]} 7. Bc2 {[%clk 0:03:00]}  Bb7 {[%clk 0:02:54]} 8. O-O {[%clk 0:02:59]}  e6 {[%clk 0:02:54]} 9. d4 {[%clk 0:03:00]}  Be7 {[%clk 0:02:51]} 10. Rd1 {[%clk 0:02:58]}  Rc8 {[%clk 0:02:49]} 11. e5 {[%clk 0:02:56]}  Nd5 {[%clk 0:02:41]} 12. exd6 {[%clk 0:02:50]}  Bxd6 {[%clk 0:02:40]} 13. Nbd2 {[%clk 0:02:36]}  c4 {[%clk 0:01:23]} 14. Ne4 {[%clk 0:02:36]}  Be7 {[%clk 0:01:23]} 15. Neg5 {[%clk 0:02:26]}  Bxg5 {[%clk 0:00:45]} 16. Nxg5 {[%clk 0:02:11]}  N7f6 {[%clk 0:00:42]} 17. Re1 {[%clk 0:01:50]}  O-O {[%clk 0:00:34]} 18. Nf3 {[%clk 0:01:49]}  b4 {[%clk 0:00:31]} 19. Bd2 {[%clk 0:01:48]}  a5 {[%clk 0:00:28]} 20. Ne5 {[%clk 0:01:48]}  Qc7 {[%clk 0:00:23]} 21. Rac1 {[%clk 0:01:26]}  h6 {[%clk 0:00:20]} 22. cxb4 {[%clk 0:01:18]}  Nxb4 {[%clk 0:00:20]} 23. Bb1 {[%clk 0:01:11]}  Bd5 {[%clk 0:00:13]} 24. Qe3 {[%clk 0:01:04]}  Nd7 {[%clk 0:00:07]} 25. Nxc4 {[%clk 0:00:26]}  Bxc4 {[%clk 0:00:06]} 26. b3 {[%clk 0:00:26]}  Nb6 {[%clk 0:00:06]} 27. Bxb4 {[%clk 0:00:20]}  axb4 {[%clk 0:00:06]} 28. bxc4 {[%clk 0:00:21]}  Rfd8 {[%clk 0:00:05]} 29. d5 {[%clk 0:00:16]}  exd5 {[%clk 0:00:03]} 30. cxd5 {[%clk 0:00:16]}  Qd6 {[%clk 0:00:02]} 31. Rxc8 {[%clk 0:00:16]}  Rxc8 {[%clk 0:00:03]} 32. Qe8+ {[%clk 0:00:16]}  Qf8 {[%clk 0:00:01]} 33. Qxf8+ {[%clk 0:00:15]}  Kxf8 {[%clk 0:00:01]} 34. Be4 {[%clk 0:00:13]}  Ra8 {[%clk 0:00:01]} 35. Re2 {[%clk 0:00:12]}  Ra3 {[%clk 0:00:01]} 36. g3 {[%clk 0:00:12]}  Ra5 {[%clk 0:00:02]} 37. Rd2 {[%clk 0:00:12]}  Nc4 {[%clk 0:00:02]} 38. Rc2 {[%clk 0:00:10]}  Nd6 {[%clk 0:00:02]} 39. Bf3 {[%clk 0:00:10]}  Ra3 {[%clk 0:00:02]} 40. Kg2 {[%clk 0:00:09]}  b3 {[%clk 0:00:02]} 41. Rc3 {[%clk 0:00:08]}  Rxa2 {[%clk 0:00:02]} 42. Rxb3 {[%clk 0:00:08]}  Rd2 {[%clk 0:00:02]} 43. Rb6 {[%clk 0:00:08]}  Ke7 {[%clk 0:00:02]} 44. Ra6 {[%clk 0:00:07]}  f5 {[%clk 0:00:02]} 45. h4 {[%clk 0:00:06]}  g5 {[%clk 0:00:02]} 46. hxg5 {[%clk 0:00:06]}  hxg5 {[%clk 0:00:03]} 47. Kf1 {[%clk 0:00:06]}  g4 {[%clk 0:00:03]} 48. Bg2 {[%clk 0:00:06]}  Rb2 {[%clk 0:00:04]} 49. Ke1 {[%clk 0:00:06]}  Rc2 {[%clk 0:00:03]} 50. Ra7+ {[%clk 0:00:04]}  Kf6 {[%clk 0:00:03]} 51. Ra6 {[%clk 0:00:04]}  Ke5 {[%clk 0:00:03]} 52. Ra7 {[%clk 0:00:03]}  Rb2 {[%clk 0:00:03]} 53. Re7+ {[%clk 0:00:03]}  Kd4 {[%clk 0:00:04]} 54. Re6 {[%clk 0:00:03]}  Rb1+ {[%clk 0:00:04]} 55. Kd2 {[%clk 0:00:02]}  Nc4+ {[%clk 0:00:04]} 56. Kc2 {[%clk 0:00:02]}  Rb2+ {[%clk 0:00:04]} 57. Kc1 {[%clk 0:00:02]}  Rxf2 {[%clk 0:00:04]} 58. d6 {[%clk 0:00:02]}  Nb6 {[%clk 0:00:03]} 59. Bc6 {[%clk 0:00:01]}  f4 {[%clk 0:00:04]} 0-1


[Site "https://www.chess.com"]

[Event "Titled Tuesday Blitz November 30 2021"]
[White "Bluebaum, Matthias"]
[Black "Donchenko, Alexander"]
[WhiteFideId "24651516"]
[BlackFideId "24603295"]
[WhiteElo "2681"]
[BlackElo "2490"]
[Result "1-0"]
[Round "08"]
[TimeControl "180+1"]
[Date "2021.11.30"]
[WhiteClock "0:00:06"]
[BlackClock "0:00:27"]

1. d4 {[%clk 0:03:00]}  d5 {[%clk 0:02:59]} 2. c4 {[%clk 0:03:00]}  dxc4 {[%clk 0:03:00]} 3. e4 {[%clk 0:03:00]}  b5 {[%clk 0:03:00]} 4. a4 {[%clk 0:03:00]}  c6 {[%clk 0:03:01]} 5. Nc3 {[%clk 0:03:00]}  Qb6 {[%clk 0:02:56]} 6. Be3 {[%clk 0:02:59]}  Qb7 {[%clk 0:02:47]} 7. Nf3 {[%clk 0:02:50]}  Nf6 {[%clk 0:02:47]} 8. Qc2 {[%clk 0:02:42]}  e6 {[%clk 0:02:44]} 9. Be2 {[%clk 0:02:42]}  Nbd7 {[%clk 0:02:42]} 10. O-O {[%clk 0:02:39]}  Be7 {[%clk 0:02:41]} 11. Rad1 {[%clk 0:02:29]}  O-O {[%clk 0:02:40]} 12. e5 {[%clk 0:02:18]}  Nd5 {[%clk 0:02:39]} 13. Ng5 {[%clk 0:02:19]}  g6 {[%clk 0:02:29]} 14. Bc1 {[%clk 0:02:05]}  a5 {[%clk 0:01:47]} 15. h4 {[%clk 0:02:05]}  Rb8 {[%clk 0:01:41]} 16. h5 {[%clk 0:02:04]}  bxa4 {[%clk 0:01:37]} 17. hxg6 {[%clk 0:02:00]}  hxg6 {[%clk 0:01:36]} 18. Nxe6 {[%clk 0:01:58]}  Qb3 {[%clk 0:01:20]} 19. Qe4 {[%clk 0:01:05]}  N7f6 {[%clk 0:01:20]} 20. exf6 {[%clk 0:01:05]}  Nxf6 {[%clk 0:01:20]} 21. Qxc6 {[%clk 0:01:06]}  Bxe6 {[%clk 0:01:18]} 22. d5 {[%clk 0:01:07]}  Rfc8 {[%clk 0:01:12]} 23. Qa6 {[%clk 0:01:05]}  Ra8 {[%clk 0:01:06]} 24. Qxa8 {[%clk 0:00:19]}  Rxa8 {[%clk 0:01:05]} 25. dxe6 {[%clk 0:00:20]}  a3 {[%clk 0:01:01]} 26. exf7+ {[%clk 0:00:20]}  Kg7 {[%clk 0:01:00]} 27. Bf3 {[%clk 0:00:17]}  Rf8 {[%clk 0:00:54]} 28. Rd2 {[%clk 0:00:06]}  Rxf7 {[%clk 0:00:47]} 29. Bd1 {[%clk 0:00:04]}  a2 {[%clk 0:00:44]} 30. Bxb3 {[%clk 0:00:04]}  cxb3 {[%clk 0:00:45]} 31. Rd3 {[%clk 0:00:04]}  a1=Q {[%clk 0:00:45]} 32. Bh6+ {[%clk 0:00:04]}  Kxh6 {[%clk 0:00:45]} 33. Rxa1 {[%clk 0:00:05]}  Bb4 {[%clk 0:00:43]} 34. Nd5 {[%clk 0:00:04]}  Nxd5 {[%clk 0:00:40]} 35. Rxd5 {[%clk 0:00:05]}  Rc7 {[%clk 0:00:39]} 36. Rd3 {[%clk 0:00:06]}  Rc2 {[%clk 0:00:38]} 37. Rxb3 {[%clk 0:00:06]}  Bc5 {[%clk 0:00:39]} 38. Rf3 {[%clk 0:00:04]}  Bb4 {[%clk 0:00:38]} 39. b3 {[%clk 0:00:05]}  Rb2 {[%clk 0:00:38]} 40. g3 {[%clk 0:00:05]}  Kg5 {[%clk 0:00:38]} 41. Kg2 {[%clk 0:00:05]}  Kg4 {[%clk 0:00:38]} 42. Rd1 {[%clk 0:00:05]}  Kg5 {[%clk 0:00:37]} 43. Rd5+ {[%clk 0:00:05]}  Kh6 {[%clk 0:00:37]} 44. Rd7 {[%clk 0:00:05]}  Kg5 {[%clk 0:00:37]} 45. Rff7 {[%clk 0:00:04]}  Rxb3 {[%clk 0:00:33]} 46. Rd5+ {[%clk 0:00:04]}  Kh6 {[%clk 0:00:33]} 47. f4 {[%clk 0:00:05]}  Be1 {[%clk 0:00:31]} 48. Rdd7 {[%clk 0:00:03]}  Rxg3+ {[%clk 0:00:31]} 49. Kf1 {[%clk 0:00:04]}  Kh5 {[%clk 0:00:28]} 50. Kxe1 {[%clk 0:00:04]}  Kg4 {[%clk 0:00:29]} 51. Kf2 {[%clk 0:00:05]}  Rf3+ {[%clk 0:00:28]} 52. Ke2 {[%clk 0:00:05]}  a4 {[%clk 0:00:27]} 53. Rd6 {[%clk 0:00:06]} 1-0


[Site "https://www.chess.com"]